[Event "Titled Tuesday Blitz May 23 Early 2023"]
[White "Mazarini41"]
[Black "Fiorito, Joaquin"]
[BlackFideId "180173"]
[WhiteElo "2453"]
[BlackElo "2157"]
[Result "1-0"]
[Round "06"]
[TimeControl "180+2"]
[Date "2023.05.23"]
[WhiteClock "0:00:09"]
[BlackClock "0:00:07"]

1. d4 {[%clk 0:02:54]}  Nf6 {[%clk 0:02:59]} 2. c4 {[%clk 0:02:54]}  e6 {[%clk 0:03:00]} 3. g3 {[%clk 0:02:52]}  d5 {[%clk 0:02:59]} 4. Bg2 {[%clk 0:02:53]}  Bb4+ {[%clk 0:02:58]} 5. Nd2 {[%clk 0:02:52]}  O-O {[%clk 0:02:57]} 6. Nf3 {[%clk 0:02:52]}  dxc4 {[%clk 0:02:57]} 7. Qc2 {[%clk 0:02:51]}  b5 {[%clk 0:02:56]} 8. a4 {[%clk 0:02:44]}  c6 {[%clk 0:02:52]} 9. axb5 {[%clk 0:02:37]}  cxb5 {[%clk 0:02:53]} 10. Ng5 {[%clk 0:02:36]}  h6 {[%clk 0:02:36]} 11. h4 {[%clk 0:02:24]}  Qxd4 {[%clk 0:02:27]} 12. Bxa8 {[%clk 0:02:20]}  Rd8 {[%clk 0:02:14]} 13. Bg2 {[%clk 0:01:59]}  hxg5 {[%clk 0:02:11]} 14. hxg5 {[%clk 0:01:59]}  Ng4 {[%clk 0:02:11]} 15. Qh7+ {[%clk 0:01:26]}  Kf8 {[%clk 0:02:11]} 16. O-O {[%clk 0:01:26]}  Bxd2 {[%clk 0:01:49]} 17. Bxd2 {[%clk 0:01:24]}  Qxd2 {[%clk 0:01:49]} 18. Rxa7 {[%clk 0:00:53]}  Nd7 {[%clk 0:01:42]} 19. Qh8+ {[%clk 0:00:48]}  Ke7 {[%clk 0:01:43]} 20. Qxg7 {[%clk 0:00:48]}  Qxe2 {[%clk 0:01:32]} 21. g6 {[%clk 0:00:45]}  Rf8 {[%clk 0:01:25]} 22. gxf7 {[%clk 0:00:40]}  Rxf7 {[%clk 0:01:24]} 23. Qg5+ {[%clk 0:00:39]}  Nf6 {[%clk 0:01:12]} 24. Qxb5 {[%clk 0:00:27]}  Rh7 {[%clk 0:01:07]} 25. Qc5+ {[%clk 0:00:20]}  Kd8 {[%clk 0:00:17]} 26. Qc7+ {[%clk 0:00:20]}  Ke7 {[%clk 0:00:17]} 27. Qxc8 {[%clk 0:00:21]}  Qh5 {[%clk 0:00:18]} 28. Re1 {[%clk 0:00:16]}  Rf7 {[%clk 0:00:13]} 29. Bc6 {[%clk 0:00:11]}  Kd6 {[%clk 0:00:11]} 30. Bxd7 {[%clk 0:00:10]}  Nxd7 {[%clk 0:00:12]} 31. Qc7+ {[%clk 0:00:10]}  Kd5 {[%clk 0:00:07]} 32. Ra5+ {[%clk 0:00:09]} 1-0


[Site "https://www.chess.com"]

[Event "Titled Tuesday Blitz May 23 Early 2023"]
[White "Bodnaruk, Anastasia"]
[Black "Yeritsyan, Hayk"]
[WhiteFideId "4181751"]
[BlackFideId "13307320"]
[WhiteElo "2304"]
[BlackElo "2449"]
[Result "0-1"]
[Round "06"]
[TimeControl "180+2"]
[Date "2023.05.23"]
[WhiteClock "0:00:00"]
[BlackClock "0:00:15"]

1. e4 {[%clk 0:03:00]}  c6 {[%clk 0:02:57]} 2. d4 {[%clk 0:03:00]}  d5 {[%clk 0:02:58]} 3. e5 {[%clk 0:03:00]}  Bf5 {[%clk 0:02:57]} 4. Nf3 {[%clk 0:02:55]}  e6 {[%clk 0:02:57]} 5. Be2 {[%clk 0:02:54]}  Ne7 {[%clk 0:02:57]} 6. O-O {[%clk 0:02:53]}  Nd7 {[%clk 0:02:57]} 7. Nbd2 {[%clk 0:02:50]}  c5 {[%clk 0:02:56]} 8. c4 {[%clk 0:02:47]}  Rc8 {[%clk 0:02:43]} 9. Nb3 {[%clk 0:02:39]}  dxc4 {[%clk 0:02:41]} 10. Bxc4 {[%clk 0:02:29]}  Nc6 {[%clk 0:02:41]} 11. Re1 {[%clk 0:02:12]}  Be7 {[%clk 0:02:33]} 12. d5 {[%clk 0:02:08]}  exd5 {[%clk 0:02:31]} 13. Bxd5 {[%clk 0:02:07]}  O-O {[%clk 0:02:31]} 14. Bf4 {[%clk 0:01:56]}  Nb6 {[%clk 0:02:04]} 15. Be4 {[%clk 0:01:48]}  Bxe4 {[%clk 0:02:02]} 16. Rxe4 {[%clk 0:01:46]}  Qxd1+ {[%clk 0:02:00]} 17. Rxd1 {[%clk 0:01:45]}  Rfd8 {[%clk 0:02:01]} 18. Ree1 {[%clk 0:01:41]}  h6 {[%clk 0:01:41]} 19. Bc1 {[%clk 0:01:34]}  Nb4 {[%clk 0:01:34]} 20. a3 {[%clk 0:01:05]}  Nd3 {[%clk 0:01:32]} 21. Re2 {[%clk 0:01:05]}  c4 {[%clk 0:01:15]} 22. Nbd4 {[%clk 0:00:42]}  Bc5 {[%clk 0:01:11]} 23. Be3 {[%clk 0:00:42]}  Nd5 {[%clk 0:01:08]} 24. Rc2 {[%clk 0:00:32]}  Nxe3 {[%clk 0:01:05]} 25. fxe3 {[%clk 0:00:32]}  b5 {[%clk 0:01:04]} 26. Kf1 {[%clk 0:00:27]}  a6 {[%clk 0:01:02]} 27. Ke2 {[%clk 0:00:24]}  Rd5 {[%clk 0:00:58]} 28. b3 {[%clk 0:00:14]}  Bxa3 {[%clk 0:00:46]} 29. bxc4 {[%clk 0:00:12]}  bxc4 {[%clk 0:00:47]} 30. Ra1 {[%clk 0:00:05]}  Bf8 {[%clk 0:00:35]} 31. Ra4 {[%clk 0:00:04]}  Nb4 {[%clk 0:00:35]} 32. Rc3 {[%clk 0:00:01]}  a5 {[%clk 0:00:29]} 33. e6 {[%clk 0:00:01]}  fxe6 {[%clk 0:00:28]} 34. Nxe6 {[%clk 0:00:02]}  Be7 {[%clk 0:00:28]} 35. Nfd4 {[%clk 0:00:02]}  Bf6 {[%clk 0:00:26]} 36. Kf3 {[%clk 0:00:01]}  Bxd4 {[%clk 0:00:25]} 37. exd4 {[%clk 0:00:01]}  Re8 {[%clk 0:00:22]} 38. Nf4 {[%clk 0:00:01]}  Rxd4 {[%clk 0:00:21]} 39. Rxa5 {[%clk 0:00:01]}  Rxf4+ {[%clk 0:00:21]} 40. Kxf4 {[%clk 0:00:01]}  Nd3+ {[%clk 0:00:20]} 41. Kf3 {[%clk 0:00:01]}  Kh7 {[%clk 0:00:18]} 42. Kg3 {[%clk 0:00:01]}  Re3+ {[%clk 0:00:16]} 43. Kg4 {[%clk 0:00:00]}  Nf2+ {[%clk 0:00:15]} 0-1


[Site "https://www.chess.com"]

[Event "Titled Tuesday Blitz May 23 Early 2023"]
[White "Novik, Maxim"]
[Black "Kovalevsky, Stanislav"]
[WhiteFideId "4102924"]
[BlackFideId "13508598"]
[WhiteElo "2287"]
[BlackElo "2174"]
[Result "1-0"]
[Round "06"]
[TimeControl "180+2"]
[Date "2023.05.23"]
[WhiteClock "0:01:40"]
[BlackClock "0:01:01"]

1. d4 {[%clk 0:02:28]}  Nf6 {[%clk 0:02:59]} 2. c4 {[%clk 0:02:28]}  e6 {[%clk 0:03:00]} 3. Nc3 {[%clk 0:02:29]}  Bb4 {[%clk 0:03:00]} 4. e3 {[%clk 0:02:29]}  d5 {[%clk 0:02:54]} 5. a3 {[%clk 0:02:25]}  Be7 {[%clk 0:02:53]} 6. cxd5 {[%clk 0:02:23]}  exd5 {[%clk 0:02:53]} 7. Bd3 {[%clk 0:02:23]}  O-O {[%clk 0:02:51]} 8. Nge2 {[%clk 0:02:24]}  c5 {[%clk 0:02:51]} 9. O-O {[%clk 0:02:24]}  Nc6 {[%clk 0:02:51]} 10. dxc5 {[%clk 0:02:22]}  Bxc5 {[%clk 0:02:51]} 11. b4 {[%clk 0:02:22]}  Bb6 {[%clk 0:02:51]} 12. Na4 {[%clk 0:02:21]}  Bc7 {[%clk 0:02:50]} 13. Bb2 {[%clk 0:02:19]}  Ng4 {[%clk 0:02:28]} 14. h3 {[%clk 0:02:08]}  Qh4 {[%clk 0:02:26]} 15. Nf4 {[%clk 0:01:58]}  g5 {[%clk 0:01:35]} 16. Nxd5 {[%clk 0:01:54]}  Bh2+ {[%clk 0:01:31]} 17. Kh1 {[%clk 0:01:53]}  Nxf2+ {[%clk 0:01:07]} 18. Rxf2 {[%clk 0:01:50]}  Qxf2 {[%clk 0:01:03]} 19. Nf6+ {[%clk 0:01:48]}  Kh8 {[%clk 0:01:02]} 20. Ng4+ {[%clk 0:01:47]}  Be5 {[%clk 0:01:01]} 21. Nxf2 {[%clk 0:01:40]}  Bxb2 {[%clk 0:01:01]} 1-0


[Site "https://www.chess.com"]

[Event "Titled Tuesday Blitz May 23 Early 2023"]
[White "GMFYHR1"]
[Black "Thecourseoisildur"]
[WhiteElo "2424"]
[BlackElo "2581"]
[Result "0-1"]
[Round "06"]
[TimeControl "180+2"]
[Date "2023.05.23"]
[WhiteClock "0:00:21"]
[BlackClock "0:00:17"]

1. e4 {[%clk 0:03:00]}  c5 {[%clk 0:02:58]} 2. Nf3 {[%clk 0:03:00]}  d6 {[%clk 0:02:57]} 3. d4 {[%clk 0:03:01]}  cxd4 {[%clk 0:02:58]} 4. Nxd4 {[%clk 0:03:02]}  Nf6 {[%clk 0:02:58]} 5. Nc3 {[%clk 0:03:02]}  a6 {[%clk 0:02:59]} 6. Bg5 {[%clk 0:03:02]}  e6 {[%clk 0:02:59]} 7. f4 {[%clk 0:03:03]}  Be7 {[%clk 0:02:58]} 8. Qf3 {[%clk 0:03:03]}  h6 {[%clk 0:02:57]} 9. Bh4 {[%clk 0:03:03]}  e5 {[%clk 0:02:57]} 10. fxe5 {[%clk 0:02:57]}  dxe5 {[%clk 0:02:57]} 11. Nf5 {[%clk 0:02:56]}  Bxf5 {[%clk 0:02:56]} 12. exf5 {[%clk 0:02:55]}  Nc6 {[%clk 0:02:50]} 13. Bd3 {[%clk 0:02:53]}  Bb4 {[%clk 0:02:42]} 14. O-O {[%clk 0:02:49]}  Bxc3 {[%clk 0:02:36]} 15. bxc3 {[%clk 0:02:50]}  O-O {[%clk 0:02:26]} 16. Rab1 {[%clk 0:02:49]}  Rb8 {[%clk 0:02:10]} 17. Be4 {[%clk 0:02:50]}  Qd6 {[%clk 0:02:05]} 18. Rfd1 {[%clk 0:02:46]}  Qc5+ {[%clk 0:02:04]} 19. Bf2 {[%clk 0:02:46]}  Qc4 {[%clk 0:02:00]} 20. Bd3 {[%clk 0:02:28]}  Qxc3 {[%clk 0:01:44]} 21. Bh4 {[%clk 0:02:17]}  Qd4+ {[%clk 0:01:16]} 22. Bf2 {[%clk 0:02:17]}  Qa4 {[%clk 0:01:16]} 23. Kh1 {[%clk 0:02:00]}  e4 {[%clk 0:01:15]} 24. Qf4 {[%clk 0:01:56]}  Qxa2 {[%clk 0:01:04]} 25. Bxe4 {[%clk 0:01:49]}  Qc4 {[%clk 0:00:58]} 26. Bd4 {[%clk 0:01:02]}  Nxd4 {[%clk 0:00:50]} 27. Bxb7 {[%clk 0:01:02]}  Rfd8 {[%clk 0:00:23]} 28. h3 {[%clk 0:00:47]}  Qxc2 {[%clk 0:00:18]} 29. Be4 {[%clk 0:00:40]}  Qxe4 {[%clk 0:00:12]} 30. Rxb8 {[%clk 0:00:27]}  Qxf4 {[%clk 0:00:10]} 31. Rxd8+ {[%clk 0:00:28]}  Kh7 {[%clk 0:00:11]} 32. R8xd4 {[%clk 0:00:29]}  Qxf5 {[%clk 0:00:12]} 33. Ra4 {[%clk 0:00:28]}  a5 {[%clk 0:00:12]} 34. Rda1 {[%clk 0:00:27]}  Ne4 {[%clk 0:00:11]} 35. Rxa5 {[%clk 0:00:27]}  Qf4 {[%clk 0:00:11]} 36. R5a4 {[%clk 0:00:24]}  Ng3+ {[%clk 0:00:10]} 37. Kg1 {[%clk 0:00:25]}  Qe3+ {[%clk 0:00:06]} 38. Kh2 {[%clk 0:00:25]}  Qe5 {[%clk 0:00:07]} 39. Kg1 {[%clk 0:00:24]}  Ne2+ {[%clk 0:00:06]} 40. Kh1 {[%clk 0:00:24]}  Nf4 {[%clk 0:00:07]} 41. Ra5 {[%clk 0:00:22]}  Qe4 {[%clk 0:00:07]} 42. R1a2 {[%clk 0:00:20]}  Nxh3 {[%clk 0:00:08]} 43. R5a4 {[%clk 0:00:20]}  Qe1+ {[%clk 0:00:08]} 44. Kh2 {[%clk 0:00:21]}  Ng5 {[%clk 0:00:09]} 45. Ra7 {[%clk 0:00:20]}  Qh4+ {[%clk 0:00:08]} 46. Kg1 {[%clk 0:00:20]}  Ne4 {[%clk 0:00:04]} 47. Rxf7 {[%clk 0:00:18]}  Qe1+ {[%clk 0:00:03]} 48. Kh2 {[%clk 0:00:18]}  Qg3+ {[%clk 0:00:04]} 49. Kg1 {[%clk 0:00:14]}  Ng5 {[%clk 0:00:03]} 50. Rf1 {[%clk 0:00:07]}  Nh3+ {[%clk 0:00:02]} 51. Kh1 {[%clk 0:00:07]}  Nf4 {[%clk 0:00:03]} 52. Raf2 {[%clk 0:00:05]}  Nd3 {[%clk 0:00:03]} 53. Rf3 {[%clk 0:00:05]}  Qh4+ {[%clk 0:00:04]} 54. Kg1 {[%clk 0:00:05]}  Qd4+ {[%clk 0:00:03]} 55. Kh1 {[%clk 0:00:06]}  Ne5 {[%clk 0:00:04]} 56. Rf4 {[%clk 0:00:06]}  Qd5 {[%clk 0:00:04]} 57. Rf5 {[%clk 0:00:06]}  Qd4 {[%clk 0:00:03]} 58. R5f4 {[%clk 0:00:07]}  Qd8 {[%clk 0:00:04]} 59. Rf8 {[%clk 0:00:06]}  Qh4+ {[%clk 0:00:04]} 60. Kg1 {[%clk 0:00:07]}  Ng4 {[%clk 0:00:04]} 61. R1f3 {[%clk 0:00:07]}  Qh2+ {[%clk 0:00:04]} 62. Kf1 {[%clk 0:00:07]}  Qh1+ {[%clk 0:00:05]} 63. Ke2 {[%clk 0:00:08]}  Qxg2+ {[%clk 0:00:06]} 64. Kd3 {[%clk 0:00:08]}  Ne5+ {[%clk 0:00:06]} 65. Ke4 {[%clk 0:00:09]}  Nxf3 {[%clk 0:00:07]} 66. Rxf3 {[%clk 0:00:10]}  Qxf3+ {[%clk 0:00:08]} 67. Kxf3 {[%clk 0:00:11]}  Kg6 {[%clk 0:00:09]} 68. Kg4 {[%clk 0:00:11]}  h5+ {[%clk 0:00:09]} 69. Kh4 {[%clk 0:00:12]}  Kh6 {[%clk 0:00:10]} 70. Kh3 {[%clk 0:00:13]}  g5 {[%clk 0:00:11]} 71. Kg3 {[%clk 0:00:14]}  Kg6 {[%clk 0:00:11]} 72. Kh3 {[%clk 0:00:15]}  Kf5 {[%clk 0:00:11]} 73. Kg3 {[%clk 0:00:16]}  h4+ {[%clk 0:00:12]} 74. Kh3 {[%clk 0:00:16]}  Kf4 {[%clk 0:00:13]} 75. Kh2 {[%clk 0:00:17]}  g4 {[%clk 0:00:14]} 76. Kg2 {[%clk 0:00:18]}  h3+ {[%clk 0:00:14]} 77. Kh2 {[%clk 0:00:19]}  Kf3 {[%clk 0:00:15]} 78. Kh1 {[%clk 0:00:19]}  g3 {[%clk 0:00:15]} 79. Kg1 {[%clk 0:00:20]}  g2 {[%clk 0:00:15]} 80. Kh2 {[%clk 0:00:21]}  Kf2 {[%clk 0:00:16]} 81. Kxh3 {[%clk 0:00:21]}  g1=Q {[%clk 0:00:17]} 0-1


[Site "https://www.chess.com"]

[Event "Titled Tuesday Blitz May 23 Early 2023"]
[White "Rodchenkov, Sergey D."]
[Black "Srihari L R"]
[WhiteFideId "4168712"]
[BlackFideId "46617116"]
[WhiteElo "2277"]
[BlackElo "2334"]
[Result "0-1"]
[Round "06"]
[TimeControl "180+2"]
[Date "2023.05.23"]
[WhiteClock "0:00:08"]
[BlackClock "0:00:19"]

1. e4 {[%clk 0:03:00]}  d6 {[%clk 0:02:55]} 2. d4 {[%clk 0:03:00]}  Nf6 {[%clk 0:02:55]} 3. Nc3 {[%clk 0:03:01]}  e5 {[%clk 0:02:55]} 4. Nf3 {[%clk 0:03:01]}  Nc6 {[%clk 0:02:53]} 5. Bb5 {[%clk 0:02:58]}  exd4 {[%clk 0:02:53]} 6. Nxd4 {[%clk 0:02:59]}  Bd7 {[%clk 0:02:53]} 7. Bxc6 {[%clk 0:02:56]}  bxc6 {[%clk 0:02:53]} 8. O-O {[%clk 0:02:44]}  Be7 {[%clk 0:02:52]} 9. Bg5 {[%clk 0:02:41]}  O-O {[%clk 0:02:49]} 10. Qd2 {[%clk 0:02:40]}  Rb8 {[%clk 0:02:46]} 11. b3 {[%clk 0:02:37]}  Re8 {[%clk 0:02:46]} 12. Rae1 {[%clk 0:02:35]}  h6 {[%clk 0:02:45]} 13. Bf4 {[%clk 0:02:25]}  Bf8 {[%clk 0:02:43]} 14. h3 {[%clk 0:02:23]}  Rb4 {[%clk 0:02:39]} 15. a3 {[%clk 0:02:20]}  Rb8 {[%clk 0:02:35]} 16. Bh2 {[%clk 0:02:20]}  c5 {[%clk 0:02:23]} 17. Nf5 {[%clk 0:02:07]}  Bxf5 {[%clk 0:02:20]} 18. exf5 {[%clk 0:02:08]}  Qd7 {[%clk 0:02:20]} 19. g4 {[%clk 0:02:00]}  Nh7 {[%clk 0:02:19]} 20. Kg2 {[%clk 0:01:33]}  Nf6 {[%clk 0:02:03]} 21. Kg1 {[%clk 0:01:26]}  Qc6 {[%clk 0:02:02]} 22. Rxe8 {[%clk 0:01:12]}  Rxe8 {[%clk 0:01:53]} 23. Re1 {[%clk 0:01:11]}  Rd8 {[%clk 0:01:50]} 24. g5 {[%clk 0:01:06]}  hxg5 {[%clk 0:01:32]} 25. Qxg5 {[%clk 0:01:07]}  d5 {[%clk 0:01:22]} 26. Be5 {[%clk 0:00:59]}  Re8 {[%clk 0:01:20]} 27. Re2 {[%clk 0:00:53]}  Nh7 {[%clk 0:00:56]} 28. Qg4 {[%clk 0:00:39]}  d4 {[%clk 0:00:55]} 29. Nd5 {[%clk 0:00:15]}  f6 {[%clk 0:00:37]} 30. Qf3 {[%clk 0:00:11]}  Kh8 {[%clk 0:00:23]} 31. Nf4 {[%clk 0:00:07]}  Qxf3 {[%clk 0:00:21]} 32. Ng6+ {[%clk 0:00:07]}  Kg8 {[%clk 0:00:19]} 33. Re3 {[%clk 0:00:08]} 0-1


[Site "https://www.chess.com"]

[Event "Titled Tuesday Blitz May 23 Early 2023"]
[White "Zacurdajev, Dmitry"]
[Black "Nikologorskiy, Konstantin"]
[WhiteFideId "4196309"]
[BlackFideId "24111708"]
[WhiteElo "2240"]
[BlackElo "2273"]
[Result "0-1"]
[Round "06"]
[TimeControl "180+2"]
[Date "2023.05.23"]
[WhiteClock "0:00:00"]
[BlackClock "0:00:07"]

1. d4 {[%clk 0:02:59]}  Nf6 {[%clk 0:02:58]} 2. c4 {[%clk 0:02:59]}  e6 {[%clk 0:02:59]} 3. Nc3 {[%clk 0:02:59]}  Bb4 {[%clk 0:02:59]} 4. Qc2 {[%clk 0:03:00]}  O-O {[%clk 0:02:59]} 5. a3 {[%clk 0:03:00]}  Bxc3+ {[%clk 0:03:00]} 6. Qxc3 {[%clk 0:03:01]}  d5 {[%clk 0:03:00]} 7. Nf3 {[%clk 0:03:00]}  c5 {[%clk 0:02:56]} 8. dxc5 {[%clk 0:02:56]}  Ne4 {[%clk 0:02:54]} 9. Qc2 {[%clk 0:02:52]}  Nxc5 {[%clk 0:02:48]} 10. b4 {[%clk 0:02:47]}  Ne4 {[%clk 0:02:48]} 11. e3 {[%clk 0:02:39]}  a5 {[%clk 0:02:47]} 12. b5 {[%clk 0:02:18]}  Nd7 {[%clk 0:02:46]} 13. Bb2 {[%clk 0:02:18]}  Ndc5 {[%clk 0:02:45]} 14. Be2 {[%clk 0:02:16]}  Bd7 {[%clk 0:02:43]} 15. O-O {[%clk 0:02:14]}  Rc8 {[%clk 0:02:42]} 16. cxd5 {[%clk 0:02:10]}  exd5 {[%clk 0:02:41]} 17. Rfd1 {[%clk 0:01:59]}  Be6 {[%clk 0:02:35]} 18. Nd4 {[%clk 0:01:49]}  Qf6 {[%clk 0:02:29]} 19. Bf3 {[%clk 0:01:37]}  Qg6 {[%clk 0:02:27]} 20. Rac1 {[%clk 0:01:25]}  Bg4 {[%clk 0:02:19]} 21. Bxg4 {[%clk 0:01:19]}  Qxg4 {[%clk 0:02:20]} 22. Qe2 {[%clk 0:01:17]}  Qg6 {[%clk 0:02:02]} 23. Nf3 {[%clk 0:01:10]}  Na4 {[%clk 0:01:58]} 24. Rxc8 {[%clk 0:00:29]}  Rxc8 {[%clk 0:01:56]} 25. Rc1 {[%clk 0:00:29]}  Rxc1+ {[%clk 0:01:53]} 26. Bxc1 {[%clk 0:00:30]}  Nec3 {[%clk 0:01:54]} 27. Qf1 {[%clk 0:00:16]}  Qb1 {[%clk 0:01:49]} 28. Nd4 {[%clk 0:00:17]}  Nc5 {[%clk 0:01:45]} 29. Bd2 {[%clk 0:00:15]}  Nd1 {[%clk 0:01:39]} 30. Bxa5 {[%clk 0:00:13]}  Ne4 {[%clk 0:01:39]} 31. f3 {[%clk 0:00:09]}  Nd6 {[%clk 0:01:33]} 32. Bb4 {[%clk 0:00:09]}  Nc4 {[%clk 0:01:33]} 33. e4 {[%clk 0:00:07]}  Nce3 {[%clk 0:01:05]} 34. Qe1 {[%clk 0:00:07]}  dxe4 {[%clk 0:01:05]} 35. fxe4 {[%clk 0:00:06]}  Qxe4 {[%clk 0:01:06]} 36. Nf3 {[%clk 0:00:05]}  Qc2 {[%clk 0:01:01]} 37. Bd2 {[%clk 0:00:06]}  Qc5 {[%clk 0:00:51]} 38. Bxe3 {[%clk 0:00:06]}  Nxe3 {[%clk 0:00:52]} 39. Qf2 {[%clk 0:00:05]}  Qc1+ {[%clk 0:00:46]} 40. Ne1 {[%clk 0:00:06]}  h5 {[%clk 0:00:35]} 41. Qe2 {[%clk 0:00:04]}  Nc2 {[%clk 0:00:27]} 42. Qe8+ {[%clk 0:00:04]}  Kh7 {[%clk 0:00:28]} 43. Qe4+ {[%clk 0:00:04]}  g6 {[%clk 0:00:28]} 44. Kf1 {[%clk 0:00:04]}  Ne3+ {[%clk 0:00:19]} 45. Ke2 {[%clk 0:00:02]}  Nf5 {[%clk 0:00:14]} 46. Qxb7 {[%clk 0:00:02]}  Qb2+ {[%clk 0:00:11]} 47. Kf3 {[%clk 0:00:02]}  Qc3+ {[%clk 0:00:10]} 48. Ke2 {[%clk 0:00:03]}  Kg7 {[%clk 0:00:06]} 49. Kf2 {[%clk 0:00:02]}  Qe3+ {[%clk 0:00:05]} 50. Kf1 {[%clk 0:00:02]}  Qd2 {[%clk 0:00:05]} 51. Qf3 {[%clk 0:00:02]}  Ne3+ {[%clk 0:00:06]} 52. Kg1 {[%clk 0:00:00]}  Qxe1+ {[%clk 0:00:07]} 0-1


[Site "https://www.chess.com"]

[Event "Titled Tuesday Blitz May 23 Early 2023"]
[White "Kielinkei"]
[Black "Shuvalov, Evgenij"]
[BlackFideId "4187237"]
[WhiteElo "2445"]
[BlackElo "2080"]
[Result "0-1"]
[Round "06"]
[TimeControl "180+2"]
[Date "2023.05.23"]
[WhiteClock "0:00:03"]
[BlackClock "0:00:36"]

1. e4 {[%clk 0:03:00]}  e6 {[%clk 0:02:55]} 2. Nf3 {[%clk 0:03:00]}  d5 {[%clk 0:02:55]} 3. e5 {[%clk 0:03:00]}  c5 {[%clk 0:02:54]} 4. b4 {[%clk 0:03:01]}  cxb4 {[%clk 0:02:54]} 5. a3 {[%clk 0:02:58]}  bxa3 {[%clk 0:02:52]} 6. d4 {[%clk 0:02:56]}  Bd7 {[%clk 0:02:51]} 7. c3 {[%clk 0:02:54]}  Nc6 {[%clk 0:02:51]} 8. Bd3 {[%clk 0:02:52]}  b5 {[%clk 0:02:51]} 9. Nxa3 {[%clk 0:02:28]}  a6 {[%clk 0:02:37]} 10. O-O {[%clk 0:02:24]}  h6 {[%clk 0:02:35]} 11. Be3 {[%clk 0:02:02]}  Nge7 {[%clk 0:02:28]} 12. Nd2 {[%clk 0:01:57]}  Nf5 {[%clk 0:02:24]} 13. Nc2 {[%clk 0:01:41]}  Be7 {[%clk 0:02:20]} 14. g4 {[%clk 0:01:35]}  Nxe3 {[%clk 0:02:18]} 15. fxe3 {[%clk 0:01:36]}  O-O {[%clk 0:02:13]} 16. Qf3 {[%clk 0:01:21]}  Na5 {[%clk 0:02:08]} 17. e4 {[%clk 0:01:15]}  Nc4 {[%clk 0:01:54]} 18. Nb3 {[%clk 0:00:59]}  Bc6 {[%clk 0:01:42]} 19. Ne3 {[%clk 0:00:58]}  dxe4 {[%clk 0:01:23]} 20. Bxe4 {[%clk 0:00:55]}  Bxe4 {[%clk 0:01:23]} 21. Qxe4 {[%clk 0:00:55]}  Nxe3 {[%clk 0:01:22]} 22. Qxe3 {[%clk 0:00:56]}  Qd5 {[%clk 0:01:19]} 23. Nd2 {[%clk 0:00:53]}  Bg5 {[%clk 0:01:16]} 24. Qd3 {[%clk 0:00:53]}  Bxd2 {[%clk 0:01:15]} 25. Qxd2 {[%clk 0:00:53]}  a5 {[%clk 0:01:12]} 26. Rfb1 {[%clk 0:00:49]}  a4 {[%clk 0:01:09]} 27. Qd3 {[%clk 0:00:48]}  Rab8 {[%clk 0:01:07]} 28. Rb4 {[%clk 0:00:47]}  Rfc8 {[%clk 0:01:04]} 29. Rab1 {[%clk 0:00:47]}  Qc6 {[%clk 0:01:00]} 30. Kf2 {[%clk 0:00:24]}  Qxc3 {[%clk 0:00:55]} 31. Qxc3 {[%clk 0:00:23]}  Rxc3 {[%clk 0:00:56]} 32. Rxb5 {[%clk 0:00:24]}  Rxb5 {[%clk 0:00:57]} 33. Rxb5 {[%clk 0:00:24]}  a3 {[%clk 0:00:52]} 34. d5 {[%clk 0:00:19]}  exd5 {[%clk 0:00:48]} 35. Rxd5 {[%clk 0:00:20]}  a2 {[%clk 0:00:47]} 36. Ra5 {[%clk 0:00:19]}  Rc2+ {[%clk 0:00:47]} 37. Kg3 {[%clk 0:00:17]}  Kf8 {[%clk 0:00:46]} 38. Ra7 {[%clk 0:00:16]}  Ke8 {[%clk 0:00:45]} 39. h4 {[%clk 0:00:14]}  Kd8 {[%clk 0:00:44]} 40. Kf4 {[%clk 0:00:13]}  Kc8 {[%clk 0:00:44]} 41. Ke4 {[%clk 0:00:12]}  Kb8 {[%clk 0:00:44]} 42. Ra4 {[%clk 0:00:07]}  Rc4+ {[%clk 0:00:42]} 43. Rxc4 {[%clk 0:00:07]}  a1=Q {[%clk 0:00:42]} 44. Rb4+ {[%clk 0:00:08]}  Kc7 {[%clk 0:00:41]} 45. Rd4 {[%clk 0:00:09]}  Qh1+ {[%clk 0:00:40]} 46. Kf4 {[%clk 0:00:07]}  Qxh4 {[%clk 0:00:40]} 47. Ra4 {[%clk 0:00:07]}  Qf2+ {[%clk 0:00:39]} 48. Ke4 {[%clk 0:00:06]}  Qc2+ {[%clk 0:00:39]} 49. Kf4 {[%clk 0:00:05]}  Qxa4+ {[%clk 0:00:39]} 50. Kf5 {[%clk 0:00:05]}  g6+ {[%clk 0:00:37]} 51. Kf6 {[%clk 0:00:06]}  Qf4+ {[%clk 0:00:36]} 52. Kg7 {[%clk 0:00:06]}  Kd7 {[%clk 0:00:34]} 53. Kh7 {[%clk 0:00:04]}  Ke6 {[%clk 0:00:34]} 54. Kg7 {[%clk 0:00:04]}  Kxe5 {[%clk 0:00:34]} 55. Kh7 {[%clk 0:00:04]}  Ke4 {[%clk 0:00:34]} 56. Kg7 {[%clk 0:00:04]}  Kf3 {[%clk 0:00:35]} 57. Kh7 {[%clk 0:00:04]}  Kxg4 {[%clk 0:00:35]} 58. Kg7 {[%clk 0:00:04]}  h5 {[%clk 0:00:36]} 59. Kh7 {[%clk 0:00:03]}  h4 {[%clk 0:00:36]} 0-1


[Site "https://www.chess.com"]

[Event "Titled Tuesday Blitz May 23 Early 2023"]
[White "Kuzmin, Roman"]
[Black "Kirillov, Dmitry"]
[WhiteFideId "44134932"]
[BlackFideId "34180572"]
[WhiteElo "2122"]
[BlackElo "2161"]
[Result "0-1"]
[Round "06"]
[TimeControl "180+2"]
[Date "2023.05.23"]
[WhiteClock "0:01:56"]
[BlackClock "0:01:52"]

1. Nf3 {[%clk 0:03:00]}  d5 {[%clk 0:02:58]} 2. b3 {[%clk 0:02:59]}  c5 {[%clk 0:02:55]} 3. Bb2 {[%clk 0:02:59]}  Nc6 {[%clk 0:02:55]} 4. e3 {[%clk 0:02:59]}  Nf6 {[%clk 0:02:54]} 5. Be2 {[%clk 0:02:53]}  Bf5 {[%clk 0:02:53]} 6. O-O {[%clk 0:02:53]}  e6 {[%clk 0:02:52]} 7. Nh4 {[%clk 0:02:47]}  Bg6 {[%clk 0:02:49]} 8. d4 {[%clk 0:02:45]}  cxd4 {[%clk 0:02:46]} 9. exd4 {[%clk 0:02:46]}  Bd6 {[%clk 0:02:45]} 10. h3 {[%clk 0:02:40]}  Ne4 {[%clk 0:02:38]} 11. Nxg6 {[%clk 0:02:39]}  hxg6 {[%clk 0:02:38]} 12. Nd2 {[%clk 0:02:38]}  Rxh3 {[%clk 0:02:10]} 13. gxh3 {[%clk 0:02:34]}  Qg5+ {[%clk 0:02:09]} 14. Bg4 {[%clk 0:02:31]}  Nxd2 {[%clk 0:02:01]} 15. Bc1 {[%clk 0:01:56]}  Qf4 {[%clk 0:01:52]} 0-1


[Site "https://www.chess.com"]